fUST/lending_fUST_20251105
["ID","MTS","AMOUNT","RATE_DAILY","PERIOD"]
[393128991,1762282894362,150.0,0.00018108,2]
[393129002,1762282894776,150.0,0.00019755,2]
[393131076,1762282973246,150.0,0.00017799,2]
[393131087,1762282973650,150.0,0.00019417,2]
[393131099,1762282974057,169.11,0.00021035,2]
[393131126,1762282975265,615.067513,0.000222,9]
[393131829,1762283004831,394.8090703,0.00020676,2]
[393132300,1762283023944,1000.0,0.00022025,30]
[393132723,1762283042549,152.86865261,0.00020567,5]
[393132878,1762283049714,150.0,0.00017117,2]
[393132890,1762283050136,150.0,0.00018673,2]
[393132900,1762283050534,151.2,0.0002023,2]
[393134525,1762283125435,150.0,0.00016315,2]
[393134530,1762283125835,150.0,0.00017092,2]
[393134540,1762283126267,150.0,0.00017869,2]
[393134550,1762283126698,178.63,0.00018646,2]
[393134562,1762283127200,223.28,0.00019423,2]
[393134571,1762283127620,267.94,0.000202,2]
[393134582,1762283128100,312.59,0.00020977,2]
[393135918,1762283199016,150.0,0.00016387,2]
[393135926,1762283199372,115.32970697,0.00017167,2]
[393135927,1762283199406,34.67029303,0.00017167,2]
[393135929,1762283199436,454.28345,0.00013699,2]
[393135937,1762283199783,150.0,0.00017947,2]
[393136773,1762283272576,150.0,0.00016902,2]
[393136774,1762283273165,150.0,0.00017707,2]
[393136780,1762283309246,499.5,0.00037852,60]
[393136790,1762283342320,150.0,0.0001683,2]
[393136791,1762283342734,150.0,0.00017632,2]
[393136793,1762283409440,150.0,0.00016314,2]
[393136794,1762283410365,150.0,0.00017091,2]
[393136795,1762283410803,150.0,0.00017868,2]
[393136937,1762283438102,-150.0,0.00018645,2]
[393136939,1762283438112,-150.0,0.00019422,2]
[393136940,1762283438123,-301.28010713,0.0001995,2]
[393136943,1762283438133,-999.0,0.00020082,2]
[393136945,1762283438143,-150.0,0.00020121,2]
[393136947,1762283438153,-454.28345,0.00020187,2]
[393136949,1762283438163,-316.0,0.00021111,2]
[393136951,1762283438172,-183.17365603,0.00021157,2]
[393136953,1762283438182,-852.38492905,0.00021167,2]
[393136955,1762283438192,-158.46480562,0.00021411,2]
[393136957,1762283438202,-457.65793172,0.00021528,2]
[393136959,1762283438212,-158.4648056,0.00021529,2]
[393136961,1762283438221,-1884.03069911,0.00021529,2]
[393136966,1762283438268,-48115.96930089,0.00021529,2]
[393136968,1762283438278,-500.0,0.00021573,2]
[393136970,1762283438287,-500.0,0.00021573,2]
[393136972,1762283438297,-500.80188264,0.00021573,2]
[393136975,1762283438306,-158.4648056,0.00021647,2]
[393136977,1762283438316,-1200.0,0.0002173,2]
[393136979,1762283438326,-160.0,0.00021752,2]
[393136981,1762283438335,-300.0,0.00021758,2]
[393136983,1762283438344,-300.0,0.00021758,2]
[393136985,1762283438353,-300.0,0.00021758,2]
[393136987,1762283438364,-300.0,0.00021758,2]
[393136989,1762283438374,-366.79,0.00021758,2]
[393136991,1762283438384,-2578.8165452,0.00021759,2]
[393136993,1762283438394,-158.4648056,0.00021765,2]
[393136995,1762283438403,-412.86149981,0.00021773,2]
[393136997,1762283438414,-500.0,0.00021773,2]
[393136999,1762283438423,-500.0,0.00021823,2]
[393137001,1762283438432,-500.0,0.00021823,2]
[393137003,1762283438442,-500.0,0.00021823,2]
[393137005,1762283438451,-500.0,0.00021823,2]
[393137007,1762283438461,-405.88620561,0.00021823,2]
[393137009,1762283438470,-500.0,0.00021823,2]
[393137011,1762283438480,-500.0,0.00021823,2]
[393137013,1762283438489,-500.0,0.00021823,2]
[393137015,1762283438503,-500.0,0.00021823,2]
[393137017,1762283438513,-500.0,0.00021823,2]
[393137019,1762283438524,-500.0,0.00021823,2]
[393137021,1762283438534,-500.0,0.00021823,2]
[393137023,1762283438544,-500.0,0.00021823,2]
[393137025,1762283438554,-500.33997138,0.00021823,2]
[393137027,1762283438563,-500.0,0.00021823,2]
[393137029,1762283438573,-500.0,0.00021823,2]
[393137031,1762283438583,-217.95475558,0.00021823,2]
[393137033,1762283438593,-500.0,0.00021823,2]
[393137035,1762283438603,-500.0,0.00021823,2]
[393137037,1762283438613,-500.0,0.00021823,2]
[393137039,1762283438623,-500.0,0.00021823,2]
[393137040,1762283438632,-500.0,0.00021823,2]
[393137042,1762283438642,-500.0,0.00021823,2]
[393137044,1762283438651,-500.0,0.00021823,2]
[393137046,1762283438661,-500.0,0.00021823,2]
[393137048,1762283438675,-500.0,0.00021823,2]
[393137050,1762283438696,-500.0,0.00021823,2]
[393137052,1762283438706,-500.0,0.00021823,2]
[393137054,1762283438717,-500.0,0.00021823,2]
[393137056,1762283438727,-500.0,0.00021823,2]
[393137058,1762283438736,-500.0,0.00021823,2]
[393137060,1762283438750,-500.0,0.00021823,2]
[393137062,1762283438760,-500.0,0.00021823,2]
[393137064,1762283438770,-500.0,0.00021823,2]
[393137066,1762283438780,-500.0,0.00021823,2]
[393137068,1762283438790,-500.0,0.00021823,2]
[393137070,1762283438801,-500.0,0.00021823,2]
[393137072,1762283438811,-242.06618777,0.00021823,2]
[393137074,1762283438820,-500.0,0.00021823,2]
[393137076,1762283438830,-500.0,0.00021823,2]
[393137078,1762283438840,-500.0,0.00021823,2]
[393137080,1762283438850,-500.0,0.00021823,2]
[393137082,1762283438860,-136.66458689,0.00021823,2]
[393137084,1762283438873,-363.33541311,0.00021823,2]
[393137086,1762283438883,-500.0,0.00021823,2]
[393137088,1762283438892,-500.0,0.00021823,2]
[393137090,1762283438902,-500.0,0.00021823,2]
[393137092,1762283438912,-500.0,0.00021823,2]
[393137094,1762283438922,-218.55657414,0.00021823,2]
[393137243,1762283440381,-417.4415672,0.00021822,2]
[393137244,1762283440391,-3371.91504876,0.00021825,2]
[393137245,1762283440401,-500.0,0.00021832,2]
[393137246,1762283440410,-500.0,0.00021832,2]
[393137247,1762283440420,-500.0,0.0002186,2]
[393137248,1762283440430,-500.0,0.0002186,2]
[393137249,1762283440439,-151.0,0.0002186,2]
[393137250,1762283440448,-151.27141549,0.0002186,2]
[393137251,1762283440458,-151.99056464,0.0002186,2]
[393137253,1762283440467,-151.0,0.0002186,2]
[393137255,1762283440476,-151.0,0.0002186,2]
[393137257,1762283440563,-151.0,0.0002186,2]
[393137258,1762283440573,-191.24671159,0.00021861,2]
[393137259,1762283440582,-252.82013646,0.00021861,2]
[393137260,1762283440591,-162.36718836,0.00021861,2]
[393137261,1762283440601,-660.0,0.00021861,2]
[393137263,1762283440610,-500.0,0.00021861,2]
[393137265,1762283440619,-6353.0,0.00021861,2]
[393137267,1762283440629,-749.0,0.00021861,2]
[393137269,1762283440639,-7320.94471218,0.00021862,2]
[393137722,1762283446887,-2215.30965221,0.00021862,2]
[393137723,1762283446897,-884.34296551,0.00021864,2]
[393137724,1762283446907,-205.02475147,0.00021865,2]
[393137725,1762283446915,-500.0,0.00021867,2]
[393137726,1762283446925,-500.0,0.00021867,2]
[393137727,1762283446935,-500.0,0.00021867,2]
[393137728,1762283446944,-500.0,0.00021867,2]
[393137729,1762283446954,-500.0,0.00021867,2]
[393137730,1762283446968,-500.0,0.00021867,2]
[393137731,1762283446977,-500.0,0.00021867,2]
[393137732,1762283446986,-500.0,0.00021867,2]
[393137733,1762283446995,-500.0,0.00021867,2]
[393137734,1762283447008,-500.0,0.00021868,2]
[393137735,1762283447018,-500.0,0.00021868,2]
[393137736,1762283447027,-151.0,0.00021868,2]
[393137737,1762283447036,-500.0,0.00021868,2]
[393137738,1762283447045,-151.0,0.00021868,2]
[393137739,1762283447055,-151.66255476,0.00021868,2]
[393137740,1762283447063,-195.53526998,0.00021868,2]
[393137741,1762283447072,-500.0,0.00021868,2]
[393137742,1762283447081,-218.21184161,0.00021868,2]
[393137743,1762283447090,-500.0,0.00021868,2]
[393137744,1762283447099,-500.0,0.00021868,2]
[393137745,1762283447109,-151.0,0.00021868,2]
[393137746,1762283447118,-500.0,0.00021868,2]
[393137747,1762283447127,-500.0,0.00021868,2]
[393137748,1762283447136,-433.46703428,0.00021868,2]
[393137749,1762283447144,-286.40619673,0.00021868,2]
[393139637,1762283575915,574.063012,0.000222,9]
[393141780,1762283712087,156.54766963,0.00037848,20]
[393144629,1762284174528,535.792145,0.000222,9]
[393144655,1762284391006,219.11682554,0.00018148,2]
[393144656,1762284391095,-574.96666339,0.00019103,2]
[393144657,1762284391117,-174.17495903,0.00019606,2]
[393144679,1762284406844,-5.33522388,0.00019606,2]
[393144680,1762284406866,-234.31441551,0.00019855,2]
[393144688,1762284464943,1682.62133033,0.00018,2]
[393144703,1762284496149,-294.85211517,0.00019103,2]
[393144704,1762284498266,-178.80650368,0.00019103,2]
[393144705,1762284500573,-215.79460417,0.00019103,2]
[393144730,1762284502656,-204.41859723,0.00019103,2]
[393144731,1762284504240,-351.1413626,0.00019103,2]
[393144755,1762284607025,259.0,0.00019103,2]
[393144758,1762284625516,-5511.15595764,0.00021,5]
[393144759,1762284625550,-151.0,0.00021461,7]
[393144760,1762284625584,-151.0,0.00021461,7]
[393144761,1762284625618,-151.0,0.00021461,7]
[393144762,1762284625651,-235.918896,0.00021461,7]
[393144763,1762284625687,-151.0,0.00021461,7]
[393144764,1762284625720,-151.0,0.00021816,7]
[393144765,1762284625756,-1760.819113,0.00021858,7]
[393144766,1762284625789,-1760.819113,0.00021858,7]
[393144767,1762284625820,-1760.819113,0.00021858,7]
[393144768,1762284625853,-1760.819113,0.00021858,7]
[393144769,1762284625888,-151.917279,0.0002186,7]
[393144770,1762284625924,-151.0,0.0002186,7]
[393144771,1762284625958,-151.0,0.0002186,7]
[393144772,1762284625992,-151.0,0.0002186,7]
[393144773,1762284626028,-151.0,0.00021917,7]
[393144774,1762284626061,-399.46520389,0.00021917,7]
[393144775,1762284626095,-151.0,0.00021918,7]
[393144776,1762284626129,-151.0,0.00021918,7]
[393144777,1762284626165,-548.95443,0.00021923,7]
[393144778,1762284626199,-548.95443,0.00021923,7]
[393144779,1762284626327,-548.95443,0.00021923,7]
[393144780,1762284626364,-548.95443,0.00021923,7]
[393144781,1762284626400,-151.0,0.0002199,7]
[393144782,1762284626437,-151.0,0.0002199,7]
[393144783,1762284626470,-859.81,0.00022,7]
[393144784,1762284626504,-27764.34,0.00022,7]
[393144785,1762284626540,-548.95443,0.00022,7]
[393144786,1762284626575,-548.95443,0.00022,7]
[393144787,1762284626608,-548.95443,0.00022,7]
[393144788,1762284626641,-548.95443,0.00022,7]
[393144789,1762284626681,-1760.819113,0.00022,7]
[393144790,1762284626715,-1760.819113,0.00022,7]
[393144791,1762284626748,-1760.819113,0.00022,7]
[393144792,1762284626811,-1760.819113,0.00022,7]
[393144793,1762284626877,-151.0,0.00022,7]
[393144794,1762284626942,-151.0,0.00022,7]
[393144795,1762284627002,-151.0,0.00022,7]
[393144796,1762284627055,-399.46520389,0.00022,7]
[393144797,1762284627107,-167.316598,0.00022026,7]
[393144798,1762284627166,-151.0,0.0002219,7]
[393144799,1762284627218,-151.0,0.0002219,7]
[393144800,1762284627278,-1760.819113,0.00022281,7]
[393144801,1762284627330,-1760.819113,0.00022281,7]
[393144802,1762284627384,-1760.819113,0.00022281,7]
[393144803,1762284627438,-1760.819113,0.00022281,7]
[393144804,1762284627605,-151.0,0.00022281,7]
[393144805,1762284627641,-151.0,0.00022281,7]
[393144806,1762284627677,-151.0,0.00022281,7]
[393144807,1762284627713,-548.95443,0.00022296,7]
[393144808,1762284627750,-548.95443,0.00022296,7]
[393144809,1762284627786,-548.95443,0.00022296,7]
[393144810,1762284627820,-548.95443,0.00022296,7]
[393144811,1762284627856,-300.0,0.00022305,20]
[393144812,1762284627893,-300.0,0.00022305,20]
[393144813,1762284627930,-300.0,0.00022305,20]
[393144814,1762284627967,-300.0,0.00022305,20]
[393144815,1762284628006,-300.0,0.00022305,20]
[393144816,1762284628045,-300.0,0.00022305,20]
[393144817,1762284628083,-300.0,0.00022305,20]
[393144818,1762284628120,-300.0,0.00022305,20]
[393144819,1762284628161,-300.0,0.00022305,20]
[393144820,1762284628199,-300.0,0.00022305,20]
[393144821,1762284628237,-300.0,0.00022305,20]
[393144822,1762284628275,-300.0,0.00022305,20]
[393144823,1762284628318,-300.0,0.00022305,20]
[393144824,1762284628359,-300.0,0.00022305,20]
[393144825,1762284628399,-300.0,0.00022305,20]
[393144826,1762284628447,-600.0,0.00022305,20]
[393144827,1762284628487,-151.0,0.0002258,7]
[393144828,1762284628526,-151.0,0.0002258,7]
[393144829,1762284628674,-548.95443,0.00022591,7]
[393144830,1762284628713,-548.95443,0.00022591,7]
[393144831,1762284628751,-548.95443,0.00022591,7]
[393144832,1762284628787,-548.95443,0.00022591,7]
[393144833,1762284628823,-231.24002081,0.0002263,4]
[393144834,1762284628858,-242.82920528,0.0002263,4]
[393144835,1762284628894,-1760.819113,0.0002263,7]
[393144836,1762284628934,-1760.819113,0.0002263,7]
[393144837,1762284628968,-1760.819113,0.0002263,7]
[393144838,1762284629002,-1760.819113,0.0002263,7]
[393144839,1762284629038,-151.0,0.0002263,7]
[393144840,1762284629072,-151.0,0.0002263,7]
[393144841,1762284629106,-535.792145,0.000227,9]
[393144842,1762284629139,-151.0,0.00022854,7]
[393144843,1762284629172,-287.068947,0.00022854,7]
[393144844,1762284629205,-548.95443,0.00022909,7]
[393144845,1762284629238,-548.95443,0.00022909,7]
[393144846,1762284629273,-548.95443,0.00022909,7]
[393144847,1762284629307,-548.954436,0.00022909,7]
[393144848,1762284629346,-1760.819113,0.00023019,7]
[393144849,1762284629380,-1760.819113,0.00023019,7]
[393144850,1762284629420,-1760.819113,0.00023019,7]
[393144851,1762284629454,-1760.819106,0.00023019,7]
[393144852,1762284629489,-535.792145,0.000232,9]
[393144853,1762284629522,-151.0,0.000232,6]
[393144908,1762284634504,323.207107,0.0002099,7]
[393144909,1762284634971,323.207107,0.00021858,7]
[393144910,1762284635604,323.207107,0.00022,7]
[393144911,1762284635902,323.207107,0.00022281,7]
[393144912,1762284635939,323.207107,0.00022661,7]
[393144913,1762284636056,323.207107,0.0002099,7]
[393144914,1762284636092,323.207107,0.00021858,7]
[393144915,1762284636335,323.207107,0.00022,7]
[393144916,1762284636398,323.207107,0.00022281,7]
[393144917,1762284637011,323.207107,0.00022661,7]
[393144918,1762284637831,323.207107,0.0002099,7]
[393144919,1762284637865,323.207107,0.00021858,7]
[393144920,1762284637903,323.207107,0.00022,7]
[393144923,1762284637939,323.207107,0.00022281,7]
[393144927,1762284638000,323.207107,0.00022661,7]
[393144928,1762284638035,323.207107,0.0002099,7]
[393144932,1762284638087,323.207107,0.00021858,7]
[393144939,1762284638164,323.207107,0.00022,7]
[393144941,1762284638203,323.207107,0.00022281,7]
[393144942,1762284638249,323.207102,0.00022661,7]
[393144950,1762284638499,-130.36010354,0.00019103,2]
[393144952,1762284638508,-300.0,0.00019695,2]
[393144953,1762284638518,-300.0,0.00019695,2]
[393144954,1762284638528,-300.0,0.00019695,2]
[393144955,1762284638538,-1200.0,0.00019695,2]
[393144956,1762284638548,-300.0,0.00019695,2]
[393144957,1762284638558,-247.12669424,0.00019696,2]
[393144958,1762284638567,-444.82804963,0.00019696,2]
[393144959,1762284638577,-790.80542156,0.00019696,2]
[393144960,1762284638586,-1234.39783771,0.00019696,2]
[393144961,1762284638596,-488.79058101,0.00019756,2]
[393144962,1762284638607,-2599.24925317,0.00019856,2]
[393144963,1762284638622,-1198.68211352,0.00019856,2]
[393144964,1762284638634,-3038.15351425,0.00019856,2]
[393144965,1762284638800,24987.9,0.00022,7]
[393145011,1762284640579,-3e-08,0.00019856,2]
[393145179,1762284646017,-1949.9091213,0.00019657,2]
[393145186,1762284646583,-1745.32737854,0.00019657,2]
[393145187,1762284658778,5000.0,0.00019103,2]
[393145188,1762284659554,-269.39634705,0.0001946,2]
[393145189,1762284672094,720.0,0.00022277,20]
[393145190,1762284675422,250.68,0.00019132,15]
[393145191,1762284675812,250.68,0.00019032,2]
[393145192,1762284676125,300.81,0.00016404,3]
[393145193,1762284677738,-300.0,0.0001946,2]
[393145194,1762284680629,-154.2012723,0.0001946,2]
[393145195,1762284683408,-318.941581,0.0001946,2]
[393145196,1762284685475,-171.66380936,0.0001946,2]
[393145197,1762284687101,-180.90705981,0.0001946,2]
[393145198,1762284688750,-312.82575952,0.0001946,2]
[393145199,1762284690592,-222.37273088,0.0001946,2]
[393145200,1762284692141,151.0,1.04e-06,2]
[393145201,1762284692178,-345.18422715,0.0001946,2]
[393145202,1762284693793,-343.2415027,0.0001946,2]
[393145203,1762284696022,-345.88843824,0.00019103,2]
[393145204,1762284698690,-245.61197925,0.00019103,2]
[393145205,1762284700915,-297.5604714,0.00019103,2]
[393145206,1762284703596,-182.47820774,0.00019103,2]
[393145207,1762284705749,-281.18337227,0.00019103,2]
[393145208,1762284709461,-355.10921894,0.00019103,2]
[393145209,1762284712845,-433.60735274,0.00019103,2]
[393145210,1762284714323,-426.480388,0.00019103,2]
[393145211,1762284714348,-23.12816071,0.00019103,2]
[393145212,1762284716784,-172.03165665,0.00019103,2]
[393145213,1762284718418,-134.47212677,0.00019103,2]
[393145214,1762284718442,-25.52787323,0.0001937,2]
[393145215,1762284720072,-358.12368659,0.0001937,2]
[393145216,1762284735524,200.0,0.00019518,3]
[393145217,1762284736061,-172.33392246,0.0001937,2]
[393145218,1762284738818,-300.0,0.0001937,2]
[393145219,1762284741686,-258.54852449,0.0001937,2]
[393145220,1762284747082,773.83,0.00022,7]
[393145221,1762284767845,300.0,0.000191,2]
[393145222,1762284776272,30488.55,0.00022,7]
[393145223,1762284778705,300.0,0.000191,2]
[393145224,1762284789444,300.0,0.000191,2]
[393145225,1762284797644,1000.0,0.00032,120]
[393145226,1762284797971,2437.117723,0.00018549,2]
[393145227,1762284800187,300.0,0.000191,2]
[393145228,1762284810585,300.0,0.000191,2]
[393145229,1762284819204,159.97751647,0.00021609,7]
[393145230,1762284820692,151.0,0.0002099,7]
[393145231,1762284820975,151.0,0.00021858,7]
[393145232,1762284821264,151.0,0.00022032,7]
[393145233,1762284821548,151.0,0.00022416,7]
[393145234,1762284821794,300.0,0.000191,2]
[393145235,1762284821897,151.0,0.00022964,7]
[393145236,1762284822195,151.0,0.0002099,7]
[393145237,1762284822493,151.0,0.00021858,7]
[393145238,1762284822787,151.0,0.00022032,7]
[393145239,1762284823419,151.0,0.00022416,7]
[393145240,1762284823758,171.922554,0.00022964,7]
[393145241,1762284833668,300.0,0.000191,2]
[393145242,1762284833906,3947.82260239,0.00019103,2]
[393145243,1762284841913,2040.76297564,0.00019103,2]
[393145244,1762284842301,300.0,0.00019102,2]
[393145245,1762284844077,300.0,0.000191,2]
[393145246,1762284854516,300.0,0.000191,2]
[393145247,1762284864833,300.0,0.000191,2]
[393145248,1762284871701,5000.0,0.00019103,2]
[393145249,1762284882132,773.83,0.00022,7]
[393145250,1762284891567,300.0,0.000191,2]
[393145251,1762284891658,300.0,0.000191,2]
[393145252,1762284894432,5000.0,0.00019103,2]
[393145253,1762284901597,300.0,0.000191,2]
[393145254,1762284902022,300.0,0.00019102,2]
[393145255,1762284902068,300.0,0.00019102,2]
[393145256,1762284902550,300.0,0.000191,2]
[393145257,1762284903044,176.0,0.00019102,2]
[393145258,1762284903156,1200.0,0.00019102,2]
[393145261,1762284911907,300.0,0.000191,2]
[393145262,1762284912108,27100.93,0.00022,7]
[393145263,1762284912997,300.0,0.000191,2]
[393145264,1762284918015,5000.0,0.00019103,2]
[393145265,1762284922896,151.0,0.00021918,7]
[393145266,1762284923210,151.0,0.00021918,7]
[393145267,1762284923521,151.0,0.00021918,7]
[393145268,1762284923813,151.0,0.00022052,7]
[393145269,1762284924110,151.0,0.00022471,7]
[393145270,1762284924443,151.0,0.00021918,7]
[393145271,1762284924765,151.0,0.00021918,7]
[393145272,1762284925141,151.0,0.00021918,7]
[393145273,1762284925516,197.467119,0.00022052,7]
[393145274,1762284940467,5000.0,0.000232,4]
[393145275,1762284962258,300.0,0.00019102,2]
[393145276,1762284963261,5000.0,0.000232,4]
[393145277,1762284965416,474.52826132,0.00018678,2]
[393145278,1762284968012,854.15087037,0.00018678,2]
[393145279,1762284972343,1518.49043621,0.00018678,2]
[393145280,1762284974601,2372.64130658,0.00018678,2]
[393145281,1762284976866,279.82330721,0.00018712,2]
[393145282,1762284983769,3413.18687799,0.00018678,2]
[393145283,1762284986137,5000.0,0.00019103,2]
[393145284,1762284986200,319.79806539,0.00018712,2]
[393145285,1762284988082,499.18479269,0.00018712,2]
[393145286,1762285009684,5000.0,0.00019103,2]
[393145287,1762285010041,479.70496764,0.00018401,2]
[393145288,1762285017069,687.85,0.00022,7]
[393145289,1762285022641,300.0,0.00019102,2]
[393145290,1762285025266,184.82670826,0.00037844,120]
[393145291,1762285032968,5000.0,0.00019103,2]
[393145292,1762285048268,24089.72,0.00022,7]
[393145293,1762285055450,5000.0,0.00019103,2]
[393145294,1762285060016,676.20161807,0.000184,2]
[393145295,1762285061917,1202.13620991,0.000184,2]
[393145296,1762285064218,1878.33782798,0.000184,2]
[393145297,1762285072957,2704.80647229,0.000184,2]
[393145298,1762285074750,3681.54214284,0.000184,2]
[393145299,1762285077698,1448.84520102,0.00019103,2]
[393145300,1762285080445,808.27708656,0.00018148,2]
[393145301,1762285096035,1000.0,0.00019559,30]
[393145302,1762285097778,1000.0,0.00019559,30]
[393145303,1762285102795,4808.54483963,0.000184,2]
[393145304,1762285104761,6085.81456266,0.000184,2]
[393145305,1762285106737,8673.71561014,0.00018148,2]
[393145306,1762285109456,7505.83796061,0.000184,2]
[393145307,1762285118342,7119.02367513,0.00018401,2]
[393145308,1762285152085,550.28,0.00022,7]
[393145309,1762285181559,233.24,0.00019531,30]
[393145310,1762285184891,19271.77,0.00022,7]
[393145311,1762285268228,476.63931024,0.000184,2]
[393145312,1762285270092,857.95075843,0.000184,2]
[393145313,1762285274770,1525.24579276,0.000184,2]
[393145314,1762285276887,2383.19655119,0.000184,2]
[393145315,1762285287822,550.28,0.00022,7]
[393145316,1762285308578,1051.745883,0.00030137,120]
[393145317,1762285321502,13344.56166351,0.00022,7]
[393145318,1762285321530,4000.03833649,0.00022,7]
[393145319,1762285336464,158.114221,0.00018488,2]
[393145320,1762285336676,158.114221,0.00018488,21]
[393145321,1762285336983,158.114221,0.00018488,41]
[393145322,1762285337266,158.114221,0.00018488,61]
[393145323,1762285337493,158.114221,0.00018488,80]
[393145324,1762285337794,158.114221,0.00018488,100]
[393145325,1762285338092,158.114221,0.00018488,120]
[393145327,1762285367261,739.34511386,0.00018432,2]
[393145328,1762285369310,1314.39131352,0.00018432,2]
[393145329,1762285373795,2053.73642738,0.00018432,2]
[393145330,1762285375694,2957.38045542,0.00018432,2]
[393145331,1762285384002,1325.92040713,0.00018921,2]
[393145332,1762285386028,166.04774712,0.0001912,2]
[393145333,1762285399147,4025.32339766,0.00018432,2]
[393145334,1762285400977,5257.56525409,0.00018432,2]
[393145335,1762285402994,6654.1060247,0.00018432,2]
[393145336,1762285425253,440.22,0.00022,7]
[393145337,1762285458877,15610.14,0.00022,7]
[393145338,1762285560057,396.2,0.00022,7]
[393145339,1762285570887,191.06448088,0.00018921,2]
[393145340,1762285573159,218.35940672,0.00018921,2]
[393145341,1762285575275,340.84538643,0.00018921,2]
[393145342,1762285577640,178.72149704,0.0001912,2]
[393145343,1762285579757,321.69869467,0.0001912,2]
[393145344,1762285581556,571.90879053,0.0001912,2]
[393145345,1762285584026,892.71387772,0.0001912,2]
[393145346,1762285595055,14049.12,0.00022,7]
[393145600,1762285640374,1224.2264879,0.00018312,2]
[393146043,1762285673760,265.44953096,0.00018921,2]
[393146076,1762285675998,477.80915572,0.00018921,2]
[393146107,1762285678180,849.43849906,0.00018921,2]
[393146138,1762285680291,256.57640805,0.00018546,2]
[393146166,1762285682290,461.8375345,0.00018546,2]
[393146193,1762285684233,821.04450577,0.00018546,2]
[393146223,1762285686521,1282.88204027,0.00018546,2]
[393146255,1762285688796,1845.50278785,0.00018546,2]
[393146343,1762285695219,356.58,0.00022,7]
[393146700,1762285721095,394.8090703,0.00018314,2]
[393146824,1762285730619,12644.21,0.00022,7]
[393147682,1762285829250,9058.45000588,0.00037842,120]
[393147683,1762285831434,320.92,0.00022,7]
[393147761,1762285833396,-175.91997926,0.00019188,2]
[393147762,1762285833406,-190.36688303,0.000192,2]
[393147763,1762285833415,-2725.53930294,0.00019262,2]
[393147764,1762285833425,-3615.96555299,0.00019264,2]
[393147765,1762285833435,-160.0,0.00019266,2]
[393147766,1762285833445,-222.0,0.00019361,2]
[393147767,1762285833454,-95.74530918,0.00019361,2]
[393147768,1762285833482,-204.25469082,0.00019361,2]
[393147769,1762285833492,-403.26030932,0.00019361,2]
[393147770,1762285833504,-607.5731192,0.00019361,2]
[393147799,1762285838547,-189.16657148,0.00019361,2]
[393147801,1762285838557,-352.12674706,0.00019361,2]
[393147803,1762285838567,-500.0,0.00019361,2]
[393147805,1762285838576,-500.0,0.00019361,2]
[393147807,1762285838586,-500.0,0.00019361,2]
[393147809,1762285838595,-249.11846531,0.00019361,2]
[393147811,1762285838605,-500.0,0.00019361,2]
[393147813,1762285838615,-233.46856515,0.00019361,2]
[393147815,1762285838626,-266.53143485,0.00019361,2]
[393147816,1762285838637,-20.95534942,0.00019361,2]
[393147818,1762285838649,-479.04465058,0.00019361,2]
[393147820,1762285838659,-500.0,0.00019361,2]